bitfinex/quotes_SOLUSD_20240818
["timestamp","ask_amount","ask_price","bid_price","bid_amount"]
[1723964424538,0.25098,142.06,141.97,15.6627]
[1723964424746,0.25098,142.06,142.0,9.44]
[1723964425107,30.8434,142.09,142.0,9.44]
[1723964425437,30.8434,142.09,141.98,65.0]
[1723964425438,0.25098,142.08,142.02,9.44]
[1723964425917,0.25098,142.08,142.02,10.84756084]
[1723964426537,0.25098,142.08,142.02,9.44]
[1723964427414,0.25098,142.08,142.02,10.84752125]
[1723964427618,0.25098,142.08,142.02,9.44]
[1723964428127,0.25098,142.08,142.03,1.40798495]
[1723964428311,0.25098,142.08,142.02,9.44]
[1723964428513,16.477,142.09,142.04,9.44]
[1723964433432,0.12549,142.08,142.01,45.0]
[1723964433637,0.37647,142.08,142.02,9.44]
[1723964435653,0.12549,142.07,141.98,20.0]
[1723964435858,0.12549,142.06,142.0,9.44]
[1723964436059,0.25098,142.06,142.0,9.44]
[1723964436223,0.25098,142.06,141.98,6.19753939]
[1723964436429,16.56159,142.04,141.97,9.44]
[1723964437524,0.12549,142.02,141.97,9.44]
[1723964437927,16.4361,142.04,141.94,390.3]
[1723964437928,16.4361,142.04,141.99,9.44]
[1723964438851,16.4361,142.04,142.01,9.44]
[1723964439849,6.6662,142.05,142.01,9.44]
[1723964441265,6.6662,142.05,142.03,9.44]
[1723964441432,16.4361,142.08,142.03,9.44]
[1723964441433,23.1023,142.08,142.03,9.44]
[1723964442269,23.1023,142.08,142.04,1.40784147]
[1723964442558,23.1023,142.08,142.03,9.44]
[1723964452743,23.1023,142.08,142.04,45.0]
[1723964455991,23.1023,142.08,142.03,9.44]
[1723964456165,0.12549,142.07,142.01,9.44]
[1723964456352,5.42916,142.07,141.99,9.44]
[1723964456544,5.42916,142.07,142.0,20.0]
[1723964456740,0.50196,142.07,141.96,6.19593742]
[1723964456955,0.12549,142.04,141.97,6.19593742]
[1723964457151,16.523,142.02,141.96,6.19593742]
[1723964457463,16.523,142.02,141.96,9.44]
[1723964461160,16.523,142.02,141.92,6.20328469]
[1723964461366,16.523,142.02,141.91,23.49344844]
[1723964461367,16.523,142.02,141.97,9.44]
[1723964461975,16.523,142.02,141.99,9.44]
[1723964462348,6.4137,142.03,141.99,9.44]
[1723964463497,16.523,142.05,142.01,9.44]
[1723964463782,16.523,142.05,142.03,9.44]
[1723964465680,6.4137,142.06,142.03,9.44]
[1723964466554,16.523,142.08,142.04,1.40791762]
[1723964468092,16.523,142.08,142.04,1.40788924]
[1723964468285,16.523,142.08,142.05,9.44]
[1723964471801,6.4137,142.09,142.05,9.44]
[1723964472161,6.4137,142.09,142.02,6.1960511]
[1723964472366,6.4137,142.09,142.05,9.44]
[1723964475303,15.0475,142.12,142.07,9.44]
[1723964482401,0.25098,142.11,142.07,9.44]
[1723964482702,0.25098,142.11,142.05,9.44]
[1723964483377,0.12549,142.1,142.03,15.667]
[1723964483581,0.12549,142.1,142.04,9.44]
[1723964483781,0.12549,142.1,142.01,6.19185101]
[1723964484002,0.12549,142.1,142.04,9.44]
[1723964489920,0.25098,142.11,142.06,9.44]
[1723964492514,0.25098,142.11,142.04,9.44]
[1723964492719,0.12549,142.1,142.04,9.44]
[1723964493094,0.12549,142.08,141.99,15.667]
[1723964493293,0.50196,142.08,142.01,9.44]
[1723964496047,0.37647,142.08,142.02,45.0]
[1723964496334,0.37647,142.08,142.03,9.44]
[1723964501518,0.25098,142.08,142.03,9.44]
[1723964501712,0.12549,142.08,142.03,9.44]
[1723964503419,6.4488,142.09,142.03,9.44]
[1723964509427,6.4488,142.09,142.05,9.44]
[1723964511081,6.4488,142.09,142.07,9.44]
[1723964511845,0.12549,142.11,142.07,9.44]
[1723964513857,21.312,142.12,142.07,9.44]
[1723964514860,21.312,142.12,142.04,6.19433665]
[1723964515172,0.12549,142.11,142.05,54.44]
[1723964515458,9.81647,142.11,142.04,6.19433665]
[1723964515664,4.9261,142.1,142.0,20.0]
[1723964515867,0.12549,142.07,142.02,9.44]
[1723964516170,0.12549,142.07,142.03,6.19666706]
[1723964516335,0.25098,142.07,142.03,6.19666706]
[1723964519063,0.25098,142.07,142.03,6.19406027]
[1723964520274,0.25098,142.07,142.02,9.44]
[1723964520275,22.3741,142.08,142.04,9.44]
[1723964521135,0.12549,142.07,142.02,9.44]
[1723964521342,0.37647,142.07,142.0,6.19311204]
[1723964521540,0.37647,142.07,141.96,8.14535844]
[1723964521541,0.12549,142.06,141.98,9.44]
[1723964521875,0.12549,142.05,141.99,6.19628375]
[1723964522166,0.12549,142.05,142.0,6.19628375]
[1723964522343,0.12549,142.05,141.99,6.19628375]
[1723964523369,0.25098,142.05,141.99,6.19628375]
[1723964524060,0.25098,142.05,141.98,9.44]
[1723964524257,0.25098,142.05,141.99,6.19628375]
[1723964524575,0.25098,142.05,141.98,9.44]
[1723964524933,0.25098,142.05,141.98,15.63628375]
[1723964525141,0.25098,142.05,141.98,9.44]
[1723964525445,5.17878,142.05,141.98,9.44]
[1723964525772,6.2645,142.03,141.98,9.44]
[1723964526362,6.2645,142.03,142.0,9.44]
[1723964527263,6.2645,142.03,141.98,9.44]
[1723964530060,0.12549,142.02,141.98,9.44]
[1723964533069,6.2645,142.03,141.98,9.44]
[1723964534655,6.2645,142.03,141.95,15.8169]
[1723964534656,0.12549,142.02,141.95,15.8169]
[1723964534858,0.12549,142.02,141.97,9.44]
[1723964539948,0.25098,142.02,141.97,9.44]
[1723964543573,0.12549,142.01,141.97,9.44]
[1723964543770,0.25098,142.01,141.97,9.44]
[1723964544068,0.12549,142.0,141.97,9.44]
[1723964545771,0.12549,142.0,141.91,21.83983721]
[1723964545972,0.12549,142.0,141.96,9.44]
[1723964546387,0.25098,142.0,141.96,9.44]
[1723964550384,0.25098,142.0,141.94,9.44]
[1723964550678,0.12549,141.98,141.9,12.42346995]
[1723964550883,0.25098,141.98,141.91,9.44]
[1723964551100,0.12549,141.97,141.91,9.44]
[1723964551397,0.25098,141.97,141.91,9.44]
[1723964551899,0.25098,141.97,141.93,9.44]
[1723964552081,0.12549,141.98,141.93,9.44]
[1723964552471,0.25098,141.98,141.93,9.44]
[1723964557381,0.12549,141.98,141.95,9.44]
[1723964557679,21.4121,141.99,141.95,9.44]
[1723964558384,16.2739,142.02,141.97,9.44]
[1723964559803,0.12549,142.01,141.97,9.44]
[1723964560679,16.2739,142.02,141.99,9.44]
[1723964566311,6.27559,142.03,141.99,9.44]
[1723964566910,6.1501,142.03,141.99,9.44]
[1723964567979,0.12549,142.05,141.99,9.44]
[1723964568294,0.37647,142.05,141.99,9.44]
[1723964568629,0.37647,142.05,142.01,9.44]
[1723964568816,0.12549,142.05,142.01,9.44]
[1723964570406,22.4428,142.06,142.03,9.44]
[1723964570785,6.414,142.06,142.03,9.44]
[1723964572415,0.12549,142.09,142.03,9.44]
[1723964572720,22.435,142.1,142.05,9.44]
[1723964574198,21.5314,142.14,142.07,9.44]
[1723964574532,21.5314,142.14,142.07,10.84750447]
[1723964575390,21.5314,142.14,142.07,9.44]
[1723964576700,0.12549,142.13,142.07,9.44]
[1723964579509,0.25098,142.13,142.07,9.44]
[1723964580703,0.12549,142.13,142.09,9.44]
[1723964580920,21.5314,142.14,142.09,9.44]
[1723964585715,21.5314,142.14,142.11,9.44]
[1723964587741,21.5314,142.14,142.09,9.44]
[1723964592428,0.25098,142.13,142.09,9.44]
[1723964592631,21.5314,142.14,142.09,9.44]
[1723964598535,21.5314,142.14,142.11,9.44]
[1723964616548,0.12549,142.13,142.1,9.44]
[1723964616730,0.8506414,142.18,142.12,9.44]
[1723964616925,0.8506414,142.18,142.14,9.44]
[1723964631459,0.12549,142.17,142.14,9.44]
[1723964632549,0.8506414,142.18,142.14,9.44]
[1723964635061,0.8506414,142.18,142.11,20.0]
[1723964635357,0.12549,142.17,142.13,9.44]
[1723964635560,0.37647,142.17,142.1,20.0]
[1723964635762,0.37647,142.17,142.09,16.0305]
[1723964636067,0.37647,142.17,142.04,6.6446]
[1723964636068,16.12559,142.15,142.06,16.0305]
[1723964636266,0.12549,142.13,142.08,9.44]
[1723964636773,0.25098,142.14,142.1,9.44]
[1723964637643,0.25098,142.14,142.06,16.0305]
[1723964637644,16.8507414,142.18,142.12,9.44]
[1723964637863,16.8507414,142.18,142.11,45.0]
[1723964638049,16.8507414,142.18,142.1,51.19423787]
[1723964638252,16.8507414,142.18,142.11,20.0]
[1723964638453,16.8507414,142.18,142.14,9.44]
[1723964638650,0.8506414,142.18,142.17,9.44]
[1723964640254,0.8506414,142.18,142.17,10.84649913]
[1723964640569,6.1917,142.24,142.17,54.78957036]
[1723964640744,6.1917,142.24,142.22,9.44]
[1723964640944,6.1917,142.24,142.2,9.44]
[1723964646674,0.12549,142.24,142.2,9.44]
[1723964646880,15.069084,142.25,142.2,9.44]
[1723964647185,0.25098,142.26,142.22,9.44]
[1723964647651,5.17148,142.26,142.2,9.44]
[1723964647852,0.12549,142.25,142.2,9.44]
[1723964648051,0.25098,142.25,142.2,9.44]
[1723964648464,5.17188,142.25,142.2,9.44]
[1723964648774,0.12549,142.24,142.17,9.44]
[1723964648959,0.12549,142.23,142.17,9.44]
[1723964649277,0.25098,142.23,142.17,9.44]
[1723964649670,0.12549,142.24,142.17,9.44]
[1723964649976,0.25098,142.24,142.19,9.44]
[1723964650271,0.12549,142.23,142.19,9.44]
[1723964654956,5.04709,142.23,142.14,16.0305]
[1723964655162,0.25098,142.22,142.16,9.44]
[1723964655658,0.25098,142.22,142.18,9.44]
[1723964661292,0.25098,142.22,142.16,9.44]
[1723964661663,5.17288,142.22,142.16,9.44]
[1723964663080,0.12549,142.21,142.16,9.44]
[1723964671496,0.25098,142.22,142.17,1.40667874]
[1723964672092,0.25098,142.22,142.18,9.44]
[1723964672303,0.12549,142.24,142.18,9.44]
[1723964672602,4.921,142.25,142.18,9.44]
[1723964673679,0.37647,142.24,142.18,9.44]
[1723964679401,4.9206,142.26,142.19,1.40638821]
[1723964679697,0.12549,142.25,142.2,9.44]
[1723964679996,0.25098,142.25,142.2,9.44]
[1723964680407,0.12549,142.25,142.2,9.44]
[1723964680603,0.25098,142.26,142.2,9.44]
[1723964680911,0.37647,142.26,142.2,9.44]
[1723964681714,0.37647,142.26,142.18,9.44]
[1723964681879,0.12549,142.25,142.18,9.44]
[1723964682194,0.12549,142.24,142.18,9.44]
[1723964682393,0.25098,142.24,142.18,9.44]
[1723964687993,5.17228,142.24,142.14,16.0305]
[1723964688199,0.12549,142.23,142.17,9.44]
[1723964688491,0.25098,142.23,142.17,9.44]
[1723964690016,0.12549,142.22,142.17,9.44]
[1723964690197,0.37647,142.22,142.16,6.18240777]
[1723964690400,11.74617,142.22,142.15,9.44]
[1723964690598,9.56549,142.19,142.09,16.0872]
[1723964690802,0.25098,142.18,142.1,6.18759517]
[1723964691009,0.12549,142.17,142.11,6.18759517]
[1723964691237,0.12549,142.17,142.12,6.18759517]
[1723964691423,0.12549,142.15,142.1,6.1898288]
[1723964691717,0.25098,142.15,142.09,6.1898288]
[1723964691917,0.25098,142.15,142.08,9.44]
[1723964692109,0.25098,142.15,142.09,6.19164]
[1723964692303,0.25098,142.15,142.08,9.44]
[1723964692532,0.25098,142.15,142.08,15.63165503]
[1723964692730,0.25098,142.15,142.08,9.44]
[1723964693028,0.25098,142.15,142.08,15.63165503]
[1723964693221,0.25098,142.15,142.09,1.40731936]
[1723964693423,0.25098,142.15,142.1,9.44]
[1723964693607,6.50199,142.16,142.11,1.40717938]
[1723964693803,6.50199,142.16,142.12,9.44]
[1723964694437,6.3765,142.16,142.12,9.44]
[1723964695712,0.12549,142.17,142.13,1.40707522]
[1723964695910,0.25098,142.17,142.13,1.40707522]
[1723964696327,6.3765,142.19,142.13,1.40707522]
[1723964696523,6.3765,142.19,142.12,9.44]
[1723964697512,6.3765,142.19,142.13,1.40690845]
[1723964697717,6.3765,142.19,142.14,9.44]
[1723964697928,6.3765,142.19,142.14,10.84682135]
[1723964699225,6.3765,142.19,142.15,1.40681351]
[1723964700316,6.3765,142.19,142.14,9.44]
[1723964700519,6.3765,142.19,142.15,1.40673962]
[1723964700743,6.3765,142.19,142.11,21.79057328]
[1723964700937,6.3765,142.19,142.14,9.44]
[1723964701540,6.3765,142.19,142.15,1.40673573]
[1723964701845,6.3765,142.19,142.14,9.44]
[1723964702450,0.12549,142.21,142.16,9.44]
[1723964702630,0.12549,142.21,142.17,1.4065919]
[1723964703348,0.12549,142.21,142.16,9.44]
[1723964704328,0.12549,142.21,142.14,9.44]
[1723964704637,0.50196,142.21,142.14,9.44]
[1723964704841,5.42426,142.21,142.14,9.44]
[1723964706526,0.50196,142.21,142.14,9.44]
[1723964707360,5.42426,142.21,142.14,9.44]
[1723964718458,0.50196,142.21,142.16,9.44]
[1723964718785,0.37647,142.21,142.16,9.44]
[1723964727845,0.37647,142.21,142.17,1.40667077]
[1723964728051,0.12549,142.21,142.17,1.40667077]
[1723964728252,6.3765,142.22,142.17,1.40667077]
[1723964728972,6.3765,142.22,142.18,10.84650163]
[1723964729270,20.9247,142.24,142.18,9.44]
[1723964730269,0.25098,142.23,142.18,9.44]
[1723964731496,6.4497,142.26,142.2,9.44]
[1723964732097,11.3703,142.26,142.2,9.44]
[1723964733001,0.12549,142.25,142.2,9.44]
[1723964736676,13.4792,142.26,142.2,9.44]
[1723964741100,7.0295,142.26,142.2,9.44]
[1723964743404,0.12549,142.25,142.2,9.44]
[1723964746284,0.12549,142.23,142.18,6.18545111]
[1723964746476,0.12549,142.23,142.17,9.44]
[1723964746477,0.25098,142.23,142.17,9.44]
[1723964746700,7.28188,142.23,142.17,15.62733888]
[1723964747089,7.28188,142.23,142.17,15.62778568]
[1723964747292,7.28188,142.23,142.17,9.44]
[1723964750899,0.12549,142.24,142.17,9.44]
[1723964751107,0.37647,142.24,142.19,9.44]
[1723964753508,0.12549,142.24,142.2,1.40634601]
[1723964753813,0.37647,142.25,142.2,1.40634601]
[1723964755891,0.25098,142.25,142.2,1.40634601]
[1723964756306,0.25098,142.25,142.19,9.44]
[1723964756693,0.25098,142.26,142.19,9.44]
[1723964757713,7.28038,142.26,142.19,9.44]
[1723964760507,6.2898,142.29,142.23,9.44]
[1723964760695,6.2898,142.29,142.24,1.40592834]
[1723964761013,24.7364,142.31,142.2,15.0907]
[1723964761014,21.7159,142.31,142.25,10.84592766]
[1723964761210,21.7159,142.31,142.26,1.40567599]
[1723964761388,21.7159,142.31,142.25,9.44]
[1723964761910,6.4195,142.31,142.25,9.44]
[1723964763415,0.12549,142.3,142.24,9.44]
[1723964763628,0.25098,142.3,142.21,6.18040083]
[1723964763918,0.25098,142.3,142.24,9.44]
[1723964766198,7.27848,142.3,142.24,9.44]
[1723964767923,0.25098,142.3,142.24,9.44]
[1723964769111,0.25098,142.3,142.22,45.0]
[1723964769112,7.0279,142.29,142.22,45.0]
[1723964769425,0.37647,142.28,142.21,9.44]
[1723964770108,0.37647,142.28,142.2,15.0907]
[1723964770418,0.37647,142.28,142.18,6.5001]
[1723964770419,0.12549,142.25,142.18,6.1803106]
[1723964770631,7.53196,142.25,142.18,9.44]
[1723964771902,7.53196,142.25,142.17,15.202]
[1723964772114,7.53196,142.25,142.18,9.44]
[1723964772330,0.50196,142.25,142.18,9.44]
[1723964772925,6.0395,142.26,142.2,9.44]
[1723964773234,6.0395,142.26,142.21,1.40610714]
[1723964773529,6.0395,142.26,142.2,9.44]
[1723964777213,13.0689,142.26,142.2,9.44]
[1723964777711,0.12549,142.25,142.2,9.44]
[1723964777909,0.25098,142.25,142.18,9.44]
[1723964778920,7.28098,142.25,142.18,9.44]
[1723964779129,0.12549,142.24,142.18,9.44]
[1723964779330,0.25098,142.24,142.18,9.44]
[1723964779521,0.12549,142.23,142.18,9.44]
[1723964779717,7.0315,142.22,142.15,15.62680972]
[1723964780030,0.12549,142.21,142.15,9.44]
[1723964780230,0.37647,142.21,142.15,15.62680972]
[1723964780530,6.98347,142.21,142.15,9.44]
[1723964782226,6.607,142.21,142.16,1.40665951]
[1723964783747,6.607,142.21,142.17,9.44]
[1723964784934,6.607,142.21,142.18,1.40646915]
[1723964785447,6.607,142.21,142.17,9.44]
[1723964785448,6.607,142.21,142.17,10.84650777]
[1723964785811,6.607,142.21,142.18,1.4065061]
[1723964786107,6.607,142.21,142.17,10.84650908]
[1723964786311,6.607,142.21,142.18,1.4065085]
[1723964788329,22.3502,142.24,142.17,9.44]
[1723964797828,0.37647,142.23,142.17,9.44]
[1723964798142,7.40737,142.23,142.17,9.44]
[1723964798827,0.37647,142.23,142.17,9.44]
[1723964799030,7.40727,142.23,142.17,9.44]
[1723964799348,7.40727,142.23,142.16,9.44]
[1723964800743,15.3198,142.24,142.2,9.44]
[1723964802927,15.3198,142.24,142.17,9.44]
[1723964803728,0.25098,142.23,142.16,6.18786662]
[1723964803937,0.12549,142.22,142.15,9.44]
[1723964804529,22.3502,142.24,142.17,9.44]
[1723964807741,0.12549,142.23,142.17,9.44]
[1723964807941,0.25098,142.23,142.17,9.44]
[1723964812739,7.28188,142.23,142.17,9.44]
[1723964816864,7.28188,142.23,142.18,1.40650925]
[1723964818451,7.28188,142.23,142.17,9.44]
[1723964821265,0.12549,142.23,142.18,6.19158114]
[1723964821471,15.3198,142.24,142.18,1.40650968]
[1723964823361,13.58358,142.25,142.21,9.44]
[1723964823362,6.3026,142.25,142.21,9.44]
[1723964828160,6.3026,142.25,142.19,6.18873457]
[1723964828488,0.12549,142.24,142.17,9.44]
[1723964828690,0.12549,142.24,142.18,6.19073764]
[1723964828890,0.25098,142.24,142.17,9.44]
[1723964829869,7.28128,142.24,142.17,9.44]
[1723964831263,0.25098,142.24,142.17,9.44]
[1723964833284,0.25098,142.24,142.18,6.19206697]
[1723964833487,0.25098,142.24,142.18,1.40640802]
[1723964833693,0.25098,142.24,142.17,9.44]
[1723964833876,0.25098,142.24,142.18,6.19211285]
[1723964834191,0.25098,142.24,142.17,9.44]
[1723964834386,7.28138,142.24,142.17,9.44]
[1723964836574,7.28138,142.24,142.15,9.44]
[1723964836575,23.85298,142.23,142.15,9.44]
[1723964836873,0.25098,142.22,142.16,6.19343869]
[1723964837076,0.25098,142.22,142.17,6.19343869]
[1723964837395,0.25098,142.22,142.15,9.44]
[1723964837606,0.12549,142.21,142.16,6.1934912]
[1723964837770,6.0669,142.2,142.17,6.1934912]
[1723964837968,6.0669,142.2,142.15,9.44]
[1723964838297,6.0669,142.2,142.16,6.19485154]
[1723964838481,6.0669,142.2,142.17,6.19485154]
[1723964838682,6.0669,142.2,142.14,9.44]
[1723964838885,6.0669,142.2,142.15,6.19474815]
[1723964839103,6.0669,142.2,142.16,6.19474815]
[1723964839404,6.0669,142.2,142.17,6.19474815]
[1723964839702,6.0669,142.2,142.14,9.44]
[1723964839903,6.0669,142.2,142.15,6.19444848]
[1723964840199,6.0669,142.2,142.16,6.19444848]
[1723964840374,6.0669,142.2,142.14,9.44]
[1723964840691,6.0669,142.2,142.15,6.19496362]
[1723964840895,6.0669,142.2,142.16,6.19496362]
[1723964841081,6.0669,142.2,142.14,9.44]
[1723964841482,6.0669,142.2,142.16,9.44]
[1723964843899,6.0669,142.2,142.15,9.44]
[1723964844105,6.0669,142.2,142.16,6.19701051]
[1723964844278,6.0669,142.2,142.15,9.44]
[1723964844482,6.0669,142.2,142.16,6.19700862]
[1723964844789,6.0669,142.2,142.15,9.44]
[1723964844992,6.0669,142.2,142.16,6.19702399]
[1723964845190,6.0669,142.2,142.15,9.44]
[1723964845510,6.0669,142.2,142.16,6.19703218]
[1723964845691,6.0669,142.2,142.15,9.44]
[1723964845883,6.0669,142.2,142.16,6.19703218]
[1723964846084,6.0669,142.2,142.15,9.44]
[1723964846292,6.0669,142.2,142.16,6.19707982]
[1723964846497,6.0669,142.2,142.15,9.44]
[1723964846711,6.0669,142.2,142.16,6.19704941]
[1723964846896,6.0669,142.2,142.15,9.44]
[1723964847088,6.0669,142.2,142.16,6.19701154]
[1723964847402,6.0669,142.2,142.16,1.40674924]
[1723964849310,6.0669,142.2,142.15,9.44]
[1723964849485,6.0669,142.2,142.16,6.19546947]
[1723964849688,6.0669,142.2,142.15,9.44]
[1723964849689,6.0669,142.2,142.17,1.40654992]
[1723964850895,6.0669,142.2,142.15,9.44]
[1723964851110,6.0669,142.2,142.16,7.6022972]
[1723964851302,6.0669,142.2,142.15,9.44]
[1723964851503,6.0669,142.2,142.16,6.19575725]
[1723964851792,6.0669,142.2,142.17,1.4065542]
[1723964852708,6.0669,142.2,142.15,9.44]
[1723964852911,6.0669,142.2,142.16,6.19553355]
[1723964853097,6.0669,142.2,142.15,9.44]
[1723964853307,6.0669,142.2,142.16,6.19553355]
[1723964853616,6.0669,142.2,142.15,9.44]
[1723964853798,6.0669,142.2,142.16,6.19553355]
[1723964853999,6.0669,142.2,142.15,9.44]
[1723964854309,6.0669,142.2,142.16,6.19553355]
[1723964854515,6.0669,142.2,142.15,9.44]
[1723964854694,6.0669,142.2,142.16,6.19494478]
[1723964854899,6.0669,142.2,142.15,9.44]
[1723964855090,6.0669,142.2,142.16,6.19424551]
[1723964855289,6.0669,142.2,142.15,9.44]
[1723964855615,6.0669,142.2,142.16,6.19412195]
[1723964855783,6.0669,142.2,142.15,9.44]
[1723964855986,6.0669,142.2,142.16,6.19403387]
[1723964856215,6.0669,142.2,142.15,9.44]
[1723964856513,6.0669,142.2,142.16,6.19420168]
[1723964856713,6.0669,142.2,142.15,9.44]
[1723964856901,6.0669,142.2,142.16,6.195045]
[1723964857103,6.0669,142.2,142.15,9.44]
[1723964857301,6.0669,142.2,142.16,6.19511413]
[1723964857518,6.0669,142.2,142.15,9.44]
[1723964857692,6.0669,142.2,142.16,6.19527303]
[1723964857887,6.0669,142.2,142.15,9.44]
[1723964858115,6.0669,142.2,142.16,6.19527303]
[1723964858408,6.0669,142.2,142.15,9.44]
[1723964858719,6.0669,142.2,142.16,6.19506865]
[1723964859022,6.0669,142.2,142.15,9.44]
[1723964859321,6.0669,142.2,142.16,6.19506865]
[1723964859502,6.0669,142.2,142.15,9.44]
[1723964859692,6.0669,142.2,142.16,6.19509838]
[1723964859891,6.0669,142.2,142.15,9.44]
[1723964860105,6.0669,142.2,142.16,6.19509838]
[1723964860305,6.0669,142.2,142.15,9.44]
[1723964862211,0.25098,142.19,142.13,9.44]
[1723964862409,0.25098,142.19,142.14,6.19695038]
[1723964862612,0.25098,142.19,142.13,9.44]
[1723964862812,0.25098,142.19,142.14,6.19698212]
[1723964863129,0.25098,142.19,142.13,9.44]
[1723964863414,0.25098,142.19,142.14,6.19692619]
[1723964863626,0.25098,142.19,142.13,9.44]
[1723964863800,0.25098,142.19,142.14,6.19711779]
[1723964864001,0.25098,142.19,142.13,9.44]
[1723964864206,0.25098,142.19,142.14,6.19692371]
[1723964864412,16.1331,142.18,142.13,9.44]
[1723964864611,16.1331,142.18,142.14,6.19711262]
[1723964864914,16.1331,142.18,142.13,9.44]
[1723964865115,16.1331,142.18,142.14,6.19718087]
[1723964865300,16.1331,142.18,142.13,9.44]
[1723964865505,16.1331,142.18,142.09,21.2303]
[1723964865506,0.12549,142.17,142.09,15.1634]
[1723964865817,0.12549,142.17,142.11,9.44]
[1723964865818,0.37647,142.17,142.11,9.44]
[1723964866121,0.37647,142.17,142.12,6.19953307]
[1723964866429,0.37647,142.17,142.11,9.44]
[1723964866724,0.37647,142.17,142.12,6.20017885]
[1723964866901,0.37647,142.17,142.11,9.44]
[1723964867103,0.37647,142.17,142.12,6.19994179]
[1723964867302,0.37647,142.17,142.11,9.44]
[1723964869427,0.37647,142.17,142.11,15.6402345]
[1723964871711,0.37647,142.17,142.11,6.2002345]
[1723964871916,7.41027,142.17,142.1,9.44]
[1723964872323,6.4281,142.16,142.1,15.6402345]
[1723964872526,6.4281,142.16,142.1,9.44]
[1723964872928,6.4281,142.16,142.1,15.6402345]
[1723964873110,6.4281,142.16,142.1,9.44]
[1723964873512,6.4281,142.16,142.1,15.6402345]
[1723964873816,6.4281,142.16,142.1,9.44]
[1723964874334,6.4281,142.16,142.1,15.6402345]
[1723964874503,6.4281,142.16,142.1,9.44]
[1723964874910,6.4281,142.16,142.1,15.6402345]
[1723964875121,6.4281,142.16,142.1,9.44]
[1723964881423,6.4281,142.16,142.14,9.44]
[1723964882619,6.4281,142.16,142.12,9.44]
[1723964892948,6.4281,142.16,142.1,15.64070193]
[1723964893143,6.4281,142.16,142.1,9.44]
[1723964893629,6.4281,142.16,142.1,15.64070193]
[1723964893833,6.4281,142.16,142.1,9.44]
[1723964894229,6.4281,142.16,142.1,15.64070193]
[1723964894410,6.4281,142.16,142.1,9.44]
[1723964894946,6.4281,142.16,142.1,15.64070193]
[1723964895126,6.4281,142.16,142.1,9.44]
[1723964895824,6.4281,142.16,142.1,15.64016546]
[1723964896141,6.4281,142.16,142.1,9.44]
[1723964896648,6.4281,142.16,142.1,15.64016546]
[1723964896822,6.4281,142.16,142.1,9.44]
[1723964897238,6.4281,142.16,142.1,15.64016546]
[1723964897418,6.4281,142.16,142.1,9.44]
[1723964897919,6.4281,142.16,142.1,15.64016546]
[1723964898121,6.4281,142.16,142.1,9.44]
[1723964898642,6.4281,142.16,142.1,15.64016546]
[1723964898852,0.12549,142.15,142.1,9.44]
[1723964899053,16.3855,142.14,142.08,6.20016546]
[1723964899217,0.37647,142.13,142.06,6.20016546]
[1723964899421,0.37647,142.13,142.07,6.20016546]
[1723964899643,0.37647,142.13,142.06,9.44]
[1723964899644,6.3246,142.12,142.06,9.44]